Workbook

Sheet Sheet1
A2: (Your Company Name)
A5: Item | D5: Location/Description | F5: Scope of | H5: Age | J5: Quantity | M5: Replacement | Q5: Depreciation | U5: Actual
A6: # | F6: Damage | M6: Cost Estimate | U6: Cash
M7: Unit | O7: Total | Q7: % | S7: $ | U7: Value Est.
A10: R=Replace C=Clean P=Paint L=Launder D=Dry Clean S=Service
A12: INSURED:
A13: CLAIM #:
A15: 1
A16: =+A15+1 -> 2 | O16: =J16*M16 -> 0 | S16: =O16*Q16 -> 0 | U16: =O16-S16 -> 0 | W16: =IF(ISBLANK(V16),"",IF(AND(V16="c",M16>175),(M16-175)*J16,O16)) ->  | X16: =IF(ISBLANK(V16),"",S16) -> 
A17: =+A16+1 -> 3 | O17: =J17*M17 -> 0 | S17: =O17*Q17 -> 0 | U17: =O17-S17 -> 0 | W17: =IF(ISBLANK(V17),"",IF(AND(V17="c",M17>175),(M17-175)*J17,O17)) ->  | X17: =IF(ISBLANK(V17),"",S17) -> 
A18: 4 | O18: 0 | S18: 0 | U18: 0
A19: 5 | O19: 0 | S19: 0 | U19: 0
A20: 6 | O20: 0 | S20: 0 | U20: 0
A21: 7 | O21: 0 | S21: 0 | U21: 0
A22: 8 | O22: 0 | S22: 0 | U22: 0
A23: 9 | O23: 0 | S23: 0 | U23: 0
A24: 10 | O24: 0 | S24: 0 | U24: 0
A25: 11 | O25: 0 | S25: 0 | U25: 0
A26: 12 | O26: 0 | S26: 0 | U26: 0
A27: 13 | O27: 0 | S27: 0 | U27: 0
A28: 14 | O28: 0 | S28: 0 | U28: 0
A29: 15 | O29: 0 | S29: 0 | U29: 0
A30: 16 | O30: 0 | S30: 0 | U30: 0
A31: 17 | O31: 0 | S31: 0 | U31: 0
A32: 18 | O32: 0 | S32: 0 | U32: 0
A33: =+A32+1 -> 19 | O33: =J33*M33 -> 0 | S33: =O33*Q33 -> 0 | U33: =O33-S33 -> 0
A34: 20 | O34: 0 | S34: 0 | U34: 0
A35: 21 | O35: 0 | S35: 0 | U35: 0
A36: 22 | O36: 0 | S36: 0 | U36: 0
A37: 23 | O37: 0 | S37: 0 | U37: 0
A38: 24 | O38: 0 | S38: 0 | U38: 0
A39: 25 | O39: 0 | S39: 0 | U39: 0
A40: 26 | O40: 0 | S40: 0 | U40: 0
A41: 27 | O41: 0 | S41: 0 | U41: 0
A42: 28 | O42: 0 | S42: 0 | U42: 0
A43: 29 | O43: 0 | S43: 0 | U43: 0
A44: 30 | O44: 0 | S44: 0 | U44: 0
A45: 31 | O45: 0 | S45: 0 | U45: 0
A46: 32 | O46: 0 | S46: 0 | U46: 0
A47: 33 | O47: 0 | S47: 0 | U47: 0
A48: 34 | O48: 0 | S48: 0 | U48: 0
A49: =+A48+1 -> 35 | O49: =J49*M49 -> 0 | S49: =O49*Q49 -> 0 | U49: =O49-S49 -> 0
A50: 36 | O50: 0 | S50: 0 | U50: 0
A51: 37 | O51: 0 | S51: 0 | U51: 0
A52: 38 | O52: 0 | S52: 0 | U52: 0
A53: 39 | O53: 0 | S53: 0 | U53: 0
A54: 40 | O54: 0 | S54: 0 | U54: 0
A55: 41 | O55: 0 | S55: 0 | U55: 0
A56: 42 | O56: 0 | S56: 0 | U56: 0
A57: 43 | O57: 0 | S57: 0 | U57: 0
A58: 44 | O58: 0 | S58: 0 | U58: 0
A59: 45 | O59: 0 | S59: 0 | U59: 0
A60: 46 | O60: 0 | S60: 0 | U60: 0
A61: 47 | O61: 0 | S61: 0 | U61: 0
A62: 48 | O62: 0 | S62: 0 | U62: 0
A63: 49 | O63: 0 | S63: 0 | U63: 0
A64: 50 | O64: 0 | S64: 0 | U64: 0
A65: =+A64+1 -> 51 | O65: =J65*M65 -> 0 | S65: =O65*Q65 -> 0 | U65: =O65-S65 -> 0
A66: 52 | O66: 0 | S66: 0 | U66: 0
A67: 53 | O67: 0 | S67: 0 | U67: 0
A68: 54 | O68: 0 | S68: 0 | U68: 0
A69: 55 | O69: 0 | S69: 0 | U69: 0
A70: 56 | O70: 0 | S70: 0 | U70: 0
A71: 57 | O71: 0 | S71: 0 | U71: 0
A72: 58 | O72: 0 | S72: 0 | U72: 0
A73: 59 | O73: 0 | S73: 0 | U73: 0
A74: 60 | O74: 0 | S74: 0 | U74: 0
A75: 61 | O75: 0 | S75: 0 | U75: 0
A76: 62 | O76: 0 | S76: 0 | U76: 0
A77: 63 | O77: 0 | S77: 0 | U77: 0
A78: 64 | O78: 0 | S78: 0 | U78: 0
A79: 65 | O79: 0 | S79: 0 | U79: 0
A80: 66 | O80: 0 | S80: 0 | U80: 0
A81: =+A80+1 -> 67 | O81: =J81*M81 -> 0 | S81: =O81*Q81 -> 0 | U81: =O81-S81 -> 0 | W81: =IF(ISBLANK(V81),"",IF(AND(V81="c",M81>175),(M81-175)*J81,O81)) ->  | X81: =IF(ISBLANK(V81),"",S81) -> 
A82: 68 | O82: 0 | S82: 0 | U82: 0
A83: 69 | O83: 0 | S83: 0 | U83: 0
A84: 70 | O84: 0 | S84: 0 | U84: 0
A85: 71 | O85: 0 | S85: 0 | U85: 0
A86: 72 | O86: 0 | S86: 0 | U86: 0
A87: 73 | O87: 0 | S87: 0 | U87: 0
A88: 74 | O88: 0 | S88: 0 | U88: 0
A89: 75 | O89: 0 | S89: 0 | U89: 0
A90: 76 | O90: 0 | S90: 0 | U90: 0
A91: 77 | O91: 0 | S91: 0 | U91: 0
A92: 78 | O92: 0 | S92: 0 | U92: 0
A93: 79 | O93: 0 | S93: 0 | U93: 0
A94: 80 | O94: 0 | S94: 0 | U94: 0
A95: 81 | O95: 0 | S95: 0 | U95: 0
A96: 82 | O96: 0 | S96: 0 | U96: 0
A97: =+A96+1 -> 83 | O97: =J97*M97 -> 0 | S97: =O97*Q97 -> 0 | U97: =O97-S97 -> 0
A98: 84 | O98: 0 | S98: 0 | U98: 0
A99: 85 | O99: 0 | S99: 0 | U99: 0
A100: 86 | O100: 0 | S100: 0 | U100: 0
A101: 87 | O101: 0 | S101: 0 | U101: 0
A102: 88 | O102: 0 | S102: 0 | U102: 0
A103: 89 | O103: 0 | S103: 0 | U103: 0
A104: 90 | O104: 0 | S104: 0 | U104: 0
O105: =J105*M105 -> 0 | S105: =O105*Q105 -> 0 | U105: =O105-S105 -> 0
O106: =J106*M106 -> 0 | S106: =O106*Q106 -> 0 | U106: =O106-S106 -> 0
A107: 1 | O107: =J107*M107 -> 0 | S107: =O107*Q107 -> 0 | U107: =O107-S107 -> 0
A108: 2 | O108: 0 | S108: 0 | U108: 0
A109: 3 | O109: 0 | S109: 0 | U109: 0
A110: 4 | O110: 0 | S110: 0 | U110: 0
A111: 5 | O111: 0 | S111: 0 | U111: 0
A112: 6 | O112: 0 | S112: 0 | U112: 0
A113: =+A112+1 -> 7 | O113: =J113*M113 -> 0 | S113: =O113*Q113 -> 0 | U113: =O113-S113 -> 0
A114: 8 | O114: 0 | S114: 0 | U114: 0
A115: 9 | O115: 0 | S115: 0 | U115: 0
A116: 10 | O116: 0 | S116: 0 | U116: 0
A117: 11 | O117: 0 | S117: 0 | U117: 0
A118: 12 | O118: 0 | S118: 0 | U118: 0
A119: 13 | O119: 0 | S119: 0 | U119: 0
A120: 14 | O120: 0 | S120: 0 | U120: 0
A121: 15 | O121: 0 | S121: 0 | U121: 0
A122: 16 | O122: 0 | S122: 0 | U122: 0
A123: 17 | O123: 0 | S123: 0 | U123: 0
A124: 18 | O124: 0 | S124: 0 | U124: 0
A125: 19 | O125: 0 | S125: 0 | U125: 0
A126: 20 | O126: 0 | S126: 0 | U126: 0
A127: 21 | O127: 0 | S127: 0 | U127: 0
A128: 22 | O128: 0 | S128: 0 | U128: 0
A129: =+A128+1 -> 23 | O129: =J129*M129 -> 0 | S129: =O129*Q129 -> 0 | U129: =O129-S129 -> 0
A130: 24 | O130: 0 | S130: 0 | U130: 0
A131: 25 | O131: 0 | S131: 0 | U131: 0
A132: 26 | O132: 0 | S132: 0 | U132: 0
A133: 27 | O133: 0 | S133: 0 | U133: 0
A134: 28 | O134: 0 | S134: 0 | U134: 0
A135: 29 | O135: 0 | S135: 0 | U135: 0
A136: 30 | O136: 0 | S136: 0 | U136: 0
A137: 31 | O137: 0 | S137: 0 | U137: 0
A138: 32 | O138: 0 | S138: 0 | U138: 0
A139: 33 | O139: 0 | S139: 0 | U139: 0
A140: 34 | O140: 0 | S140: 0 | U140: 0
A141: 35 | O141: 0 | S141: 0 | U141: 0
A142: 36 | O142: 0 | S142: 0 | U142: 0
A143: 37 | O143: 0 | S143: 0 | U143: 0
A144: 38 | O144: 0 | S144: 0 | U144: 0
A145: =+A144+1 -> 39 | O145: =J145*M145 -> 0 | S145: =O145*Q145 -> 0 | U145: =O145-S145 -> 0 | W145: =IF(ISBLANK(V145),"",IF(AND(V145="c",M145>175),(M145-175)*J145,O145)) ->  | X145: =IF(ISBLANK(V145),"",S145) -> 
A146: 40 | O146: 0 | S146: 0 | U146: 0
A147: 41 | O147: 0 | S147: 0 | U147: 0
A148: 42 | O148: 0 | S148: 0 | U148: 0
A149: 43 | O149: 0 | S149: 0 | U149: 0
A150: 44 | O150: 0 | S150: 0 | U150: 0
A151: 45 | O151: =J151*M151 -> 0 | S151: =O151*Q151 -> 0 | U151: =O151-S151 -> 0
A152: 46 | O152: =J152*M152 -> 0 | S152: =O152*Q152 -> 0 | U152: =O152-S152 -> 0
A153: 47 | O153: 0 | S153: 0 | U153: 0
A154: 48 | O154: 0 | S154: 0 | U154: 0
A155: 49 | O155: 0 | S155: 0 | U155: 0
A156: 50 | O156: 0 | S156: 0 | U156: 0
A157: 51 | O157: 0 | S157: 0 | U157: 0
A158: 52 | O158: 0 | S158: 0 | U158: 0
A159: 53 | O159: 0 | S159: 0 | U159: 0
A160: 54 | O160: 0 | S160: 0 | U160: 0
A161: =+A160+1 -> 55 | O161: =J161*M161 -> 0 | S161: =O161*Q161 -> 0 | U161: =O161-S161 -> 0
A162: 56 | O162: 0 | S162: 0 | U162: 0
A163: 57 | O163: 0 | S163: 0 | U163: 0
A164: 58 | O164: 0 | S164: 0 | U164: 0
A165: 59 | O165: 0 | S165: 0 | U165: 0
A166: 60 | O166: 0 | S166: 0 | U166: 0
A167: 61 | O167: =J167*M167 -> 0 | S167: =O167*Q167 -> 0 | U167: =O167-S167 -> 0
O168: =J168*M168 -> 0 | S168: =O168*Q168 -> 0 | U168: =O168-S168 -> 0
A169: =+A167+1 -> 62 | O169: =J169*M169 -> 0 | S169: =O169*Q169 -> 0 | U169: =O169-S169 -> 0
A170: 63 | O170: 0 | S170: 0 | U170: 0
A171: 64 | O171: 0 | S171: 0 | U171: 0
A172: 65 | O172: 0 | S172: 0 | U172: 0
A173: 66 | O173: 0 | S173: 0 | U173: 0
A174: 67 | O174: 0 | S174: 0 | U174: 0
A175: 68 | O175: 0 | S175: 0 | U175: 0
A176: 69 | O176: 0 | S176: 0 | U176: 0
A177: 70 | O177: 0 | S177: 0 | U177: 0
A178: =+A177+1 -> 71 | O178: =J178*M178 -> 0 | S178: =O178*Q178 -> 0 | U178: =O178-S178 -> 0
A179: 72 | O179: 0 | S179: 0 | U179: 0
A180: 73 | O180: 0 | S180: 0 | U180: 0
A181: 74 | O181: 0 | S181: 0 | U181: 0
A182: 75 | O182: 0 | S182: 0 | U182: 0
A183: 76 | O183: 0 | S183: 0 | U183: 0
A184: 77 | O184: 0 | S184: 0 | U184: 0
A185: 78 | O185: 0 | S185: 0 | U185: 0
A186: 79 | O186: 0 | S186: 0 | U186: 0
A187: 80 | O187: =J187*M187 -> 0 | S187: =O187*Q187 -> 0 | U187: =O187-S187 -> 0
A188: 81 | O188: =J188*M188 -> 0 | S188: =O188*Q188 -> 0 | U188: =O188-S188 -> 0
A189: 82 | O189: 0 | S189: 0 | U189: 0
A190: 83 | O190: 0 | S190: 0 | U190: 0
A191: 84 | O191: 0 | S191: 0 | U191: 0
A192: 85 | O192: 0 | S192: 0 | U192: 0
A193: 86 | O193: 0 | S193: 0 | U193: 0
A194: =+A193+1 -> 87 | O194: =J194*M194 -> 0 | S194: =O194*Q194 -> 0 | U194: =O194-S194 -> 0
A195: 88 | O195: 0 | S195: 0 | U195: 0
A196: 89 | O196: 0 | S196: 0 | U196: 0
A197: 90 | O197: 0 | S197: 0 | U197: 0
A198: 91 | O198: 0 | S198: 0 | U198: 0
A199: 92 | O199: 0 | S199: 0 | U199: 0
A200: 93 | O200: 0 | S200: 0 | U200: 0
A201: 94 | O201: 0 | S201: 0 | U201: 0
A202: 95 | O202: 0 | S202: 0 | U202: 0
A203: 96 | O203: 0 | S203: 0 | U203: 0
A204: 97 | O204: 0 | S204: 0 | U204: 0
A205: 98 | O205: 0 | S205: 0 | U205: 0
A206: 99 | O206: 0 | S206: 0 | U206: 0
A207: 100 | O207: 0 | S207: 0 | U207: 0
... 905 more rows

Sheet Sheet2
